fUSD/lending_fUSD_20250807
["ID","MTS","AMOUNT","RATE_DAILY","PERIOD"]
[377736090,1754524802785,480.0,0.00030136,120]
[377736095,1754524874501,199.76,0.00013699,2]
[377736097,1754524918445,1219.83,0.00017915,2]
[377736098,1754524958235,1542.27,0.0001793,2]
[377736101,1754525028220,690.44,0.00017921,2]
[377736102,1754525039392,608.71,0.00015068,2]
[377736103,1754525039647,608.71,0.00016661,2]
[377736104,1754525056875,157.34287277,0.00017571,2]
[377736109,1754525160203,250.0,0.0001793,2]
[377736111,1754525201794,18500.0,0.00018,2]
[377736120,1754525295999,500.0,0.00018005,2]
[377736122,1754525336591,468.0,0.0003,120]
[377736154,1754525380631,-967.44,0.00018032,2]
[377736155,1754525380654,-250.0,0.00018048,2]
[377736156,1754525380679,-1000.0,0.00018086,2]
[377736157,1754525380706,-23900.0,0.00018102,2]
[377736158,1754525380732,-318.8,0.00018207,2]
[377736159,1754525380757,-608.71,0.00018253,2]
[377736160,1754525380781,-1200.0,0.00018596,2]
[377736161,1754525380806,-6433.17700088,0.00018597,2]
[377736162,1754525380832,-1000.0,0.0001863,2]
[377736163,1754525380858,-4905.30081,0.0001881,2]
[377736164,1754525380882,-165.0,0.00018876,2]
[377736165,1754525380905,-500.0,0.00018877,2]
[377736166,1754525380930,-318.8,0.00018889,2]
[377736167,1754525380954,-7034.53688674,0.000189,2]
[377736168,1754525380978,-537.81374655,0.000189,2]
[377736169,1754525381002,-4905.30081,0.0001892,2]
[377736170,1754525381027,-967.44,0.00018933,2]
[377736171,1754525381050,-301.00551465,0.00018989,2]
[377736172,1754525381074,-541.34445954,0.00018989,2]
[377736173,1754525381098,-374.4135942,0.00018997,2]
[377736174,1754525381121,-43770.91717744,0.00018998,2]
[377736175,1754525391747,-2702.38348916,0.00018998,2]
[377736176,1754525391774,-7466.6096667,0.00018998,2]
[377736177,1754525391802,-9831.00684414,0.00018998,2]
[377736178,1754525392987,-20000.0,0.00018998,2]
[377736179,1754525406925,-300.0,0.00018997,2]
[377736180,1754525406954,-1200.0,0.00018997,2]
[377736181,1754525406989,-300.0,0.00018997,2]
[377736182,1754525407018,-300.0,0.00018998,2]
[377736183,1754525407045,-15439.03565576,0.00018998,2]
[377736184,1754525407075,-2460.96434424,0.00018998,2]
[377736185,1754525412064,-2248.61095696,0.00018998,2]
[377736186,1754525412089,-4106.3505867,0.00018998,2]
[377736187,1754525412116,-3645.03845634,0.00018998,2]
[377736209,1754525432160,-22082.24232546,0.00018998,2]
[377736211,1754525432171,-250.0,0.00018999,2]
[377736213,1754525432180,-500.0,0.00018999,2]
[377736214,1754525432190,-207.51450091,0.00018999,2]
[377736215,1754525432200,-150.74453813,0.00018999,2]
[377736216,1754525432210,-2379.26794178,0.00019,2]
[377736223,1754525432326,-51845.03874376,0.00019,2]
[377736316,1754525438188,-495.16103179,0.00019,2]
[377736637,1754525442257,-0.02862359,0.00019,2]
[377736656,1754525443981,-56911.58532166,0.00019,2]
[377736657,1754525443995,-3343.64068393,0.00019,2]
[377736658,1754525444766,-377.36324262,0.00019,2]
[377736659,1754525444779,-2327.84440931,0.00019,2]
[377736662,1754525446373,-348.66359163,0.0001866,2]
[377736663,1754525446390,-163.33640837,0.0001866,2]
[377736664,1754525446400,-151.0,0.00018998,2]
[377736665,1754525446411,-1215.06136262,0.00019,2]
[377736666,1754525446424,-400.0,0.00019,2]
[377736679,1754525460994,-214.70464961,0.00019,2]
[377736680,1754525465288,-152.51,0.00018999,2]
[377736681,1754525468167,-151.0,0.00018998,2]
[377736682,1754525468193,-41.35,0.00018999,2]
[377736685,1754525531474,-175.0,0.000189,2]
[377736687,1754525595310,175.0,0.0001851,7]
[377736691,1754525637947,48736.15,0.00018,2]
[377736694,1754525673092,150.0,0.00018,2]
[377736695,1754525684597,1524.13551084,0.00018997,5]
[377736696,1754525697560,316.71,0.00017967,2]
[377736697,1754525698216,316.71,0.00024704,120]
[377736698,1754525698435,316.71,0.0002695,120]
[377736700,1754525720381,167.27,0.00017945,2]
[377736701,1754525741115,567.0,0.0003013,120]
[377736707,1754525803053,646.0,0.0003013,120]
[377736708,1754525806830,496.13604123,0.0003013,120]
[377736710,1754525835767,300.0,0.0003,120]
[377736711,1754525884979,2000.0,0.0003,120]
[377736712,1754525908224,976.51,0.00017901,2]
[377736713,1754525908433,976.51,0.00017911,2]
[377736714,1754525908633,976.51,0.0001792,2]
[377736715,1754525908842,976.51,0.0001793,2]
[377736716,1754525909078,976.51,0.00017939,2]
[377736717,1754525909505,976.51,0.00017948,2]
[377736718,1754525909720,976.51,0.00017958,2]
[377736719,1754525909948,976.51,0.00017967,2]
[377736720,1754525910047,5913.11169208,0.0003,120]
[377736721,1754525910161,976.51,0.00017977,2]
[377736722,1754525910647,976.51,0.00017986,2]
[377736723,1754525910754,976.51,0.00017996,2]
[377736727,1754525986987,150.0,0.00018,2]
[377736729,1754526028304,231.06,0.00013699,2]
[377736735,1754526156044,200.0,0.00017687,2]
[377736736,1754526178423,250.0,0.00015,2]
[377736737,1754526179533,300.0,0.00017,2]
[377736741,1754526228472,23900.0,0.00017693,2]
[377736742,1754526239801,533.96,0.00015068,2]
[377736743,1754526240068,533.96,0.00016649,2]
[377736744,1754526244300,1000.0,0.00016575,4]
[377736746,1754526300117,150.0,0.00018,2]
[377736749,1754526311195,1000.0,0.00017669,2]
[377736750,1754526325105,3508.40143898,0.000175,2]
[377736755,1754526419831,771.13,0.00017678,2]
[377736760,1754526461093,424.0,0.00018,2]
[377736761,1754526476323,1563.57614499,0.00018,2]
[377736767,1754526519116,8718.75517763,0.000151,2]
[377736770,1754526525723,512.0,0.00017628,2]
[377736771,1754526536672,175.0,0.0001769,7]
[377736781,1754526632161,-976.51,0.00018005,2]
[377736782,1754526632170,-250.0,0.00018007,2]
[377736783,1754526632180,-976.51,0.00018014,2]
[377736784,1754526632189,-976.51,0.00018024,2]
[377736785,1754526632198,-976.51,0.00018033,2]
[377736786,1754526632207,-976.51,0.00018043,2]
[377736787,1754526632216,-976.51,0.00018052,2]
[377736788,1754526632225,-211.32012852,0.00018061,2]
[377736789,1754526632252,-310.61318415,0.00018061,2]
[377736790,1754526632265,-454.57668733,0.00018061,2]
[377736791,1754526632275,-89.66653441,0.00018068,2]
[377736792,1754526632297,-905.52493723,0.00018068,2]
[377736793,1754526632432,-204.80852836,0.00018068,2]
[377736794,1754526632441,-1200.0,0.00018069,2]
[377736795,1754526632451,-300.0,0.00018069,2]
[377736796,1754526632461,-976.51,0.00018071,2]
[377736797,1754526632470,-976.51,0.0001808,2]
[377736798,1754526632481,-168.73,0.00018218,2]
[377736799,1754526632491,-533.96,0.00018229,2]
[377736800,1754526632501,-1069.41505343,0.00018239,2]
[377736801,1754526632511,-651.55,0.00018255,2]
[377736802,1754526632520,-500.0,0.00018521,2]
[377736803,1754526632530,-226.79,0.00018542,2]
[377736804,1754526632540,-600.0,0.00018592,2]
[377736805,1754526632549,-600.0,0.00018592,2]
[377736806,1754526632558,-600.0,0.00018592,2]
[377736807,1754526632567,-600.0,0.00018592,2]
[377736808,1754526632577,-1000.0,0.00018615,2]
[377736809,1754526632587,-443.00659001,0.00018649,2]
[377736810,1754526632597,-150.0,0.00018656,2]
[377736811,1754526632607,-513.0,0.00018658,2]
[377736812,1754526632616,-150.0,0.00018659,2]
[377736813,1754526632626,-150.0,0.00018666,2]
[377736814,1754526632635,-1000.0,0.00018671,2]
[377736815,1754526632645,-1000.0,0.0001868,2]
[377736817,1754526632654,-150.0,0.00018683,2]
[377736819,1754526632664,-777.10991566,0.00018686,2]
[377736821,1754526632677,-222.89008434,0.00018686,2]
[377736822,1754526632686,-461.86748225,0.00018693,2]
[377736823,1754526632695,-2477.73,0.000187,2]
[377736824,1754526632704,-150.0,0.00018706,2]
[377736825,1754526632713,-150.0,0.0001871,2]
[377736826,1754526632722,-228.67135452,0.00018719,2]
[377736827,1754526632732,-1000.0,0.00018733,2]
[377736828,1754526632741,-150.0,0.00018733,2]
[377736829,1754526632749,-150.0,0.00018742,2]
[377736830,1754526632759,-150.0,0.00018746,2]
[377736831,1754526632768,-1000.0,0.00018748,2]
[377736832,1754526632777,-1000.0,0.00018764,2]
[377736833,1754526632786,-1000.0,0.00018766,2]
[377736834,1754526632795,-150.0,0.00018769,2]
[377736835,1754526632805,-150.0,0.00018771,2]
[377736836,1754526632814,-500.0,0.00018771,2]
[377736837,1754526632823,-150.0,0.00018771,2]
[377736838,1754526632832,-150.0,0.00018771,2]
[377736839,1754526632840,-150.0,0.00018771,2]
[377736840,1754526632849,-150.0,0.00018771,2]
[377736841,1754526632859,-150.0,0.00018771,2]
[377736842,1754526632867,-500.0,0.00018771,2]
[377736843,1754526632876,-500.0,0.00018771,2]
[377736844,1754526632885,-150.0,0.0001879,2]
[377736845,1754526632894,-1000.0,0.00018791,2]
[377736847,1754526632904,-150.0,0.00018795,2]
[377736849,1754526632913,-150.0,0.00018797,2]
[377736851,1754526632923,-2458.55265313,0.0001881,2]
[377736853,1754526632935,-811.64788687,0.0001881,2]
[377736855,1754526632944,-500.0,0.00018811,2]
[377736857,1754526632953,-500.0,0.00018811,2]
[377736859,1754526632962,-150.0,0.00018811,2]
[377736861,1754526632972,-150.0,0.00018812,2]
[377736863,1754526632982,-150.0,0.00018814,2]
[377736865,1754526632992,-150.0,0.00018817,2]
[377736867,1754526633001,-150.0,0.00018825,2]
[377736869,1754526633011,-150.0,0.0001883,2]
[377736871,1754526633020,-150.0,0.00018837,2]
[377736873,1754526633030,-1000.0,0.00018839,2]
[377736876,1754526633040,-150.0,0.00018853,2]
[377736878,1754526633050,-1000.0,0.00018854,2]
[377736880,1754526633063,-1000.0,0.00018881,2]
[377736882,1754526633072,-150.0,0.00018886,2]
[377736883,1754526633082,-226.77907979,0.00018891,2]
[377736885,1754526633092,-3222.34786995,0.00018898,2]
[377736949,1754526638258,-597.30868196,0.00018898,2]
[377736950,1754526638360,-3827.36250771,0.00018898,2]
[377736951,1754526638379,-1701.51525234,0.00018898,2]
[377736952,1754526638389,-537.81374655,0.000189,2]
[377736953,1754526638399,-501.69012235,0.000189,2]
[377736954,1754526638410,-244.1201044,0.000189,2]
[377736955,1754526638419,-78.83995056,0.000189,2]
[377737126,1754526640162,-5403.46706265,0.000189,2]
[377737128,1754526640172,-150.0,0.00018913,2]
[377737130,1754526640181,-3270.20054,0.0001892,2]
[377737132,1754526640190,-150.73025932,0.00018927,2]
[377737134,1754526640200,-291.26633858,0.00018978,2]
[377737137,1754526640211,-195.43576994,0.00018997,2]
[377737139,1754526640221,-151.0,0.00018998,2]
[377737141,1754526640230,-151.0,0.00018998,2]
[377737143,1754526640241,-296.379126,0.00018998,2]
[377737145,1754526640250,-27776.3798333,0.00018998,2]
[377737147,1754526640262,-402.599959,0.00018998,2]
[377737148,1754526640272,-402.599959,0.00018998,2]
[377737150,1754526640281,-6367.35667703,0.00018998,2]
[377737158,1754526640350,-1677.86483,0.00018998,2]
[377737160,1754526640361,-550.0,0.00018998,2]
[377737164,1754526640384,-2535.47177796,0.00018998,2]
[377737443,1754526643144,-520.0654941,0.00018998,2]
[377737467,1754526643411,-1201.2582249,0.00018998,2]
[377737719,1754526646267,-4787.33790081,0.00018998,2]
[377737721,1754526646280,-3736.40207311,0.00018998,2]
[377737724,1754526646308,-3231.26,0.00018998,2]
[377737728,1754526646337,-3983.7513085,0.00018998,2]
[377737730,1754526646349,-2753.20002,0.00018998,2]
[377738203,1754526653364,150.0,0.00018,2]
[377738208,1754526774129,3667.40802762,0.00030136,120]
[377738211,1754526795985,-181.43,0.00018024,2]
[377738212,1754526796009,-202.07065295,0.00018105,2]
[377738217,1754526813212,169.27,0.00017985,2]
[377738221,1754526863973,179.95,0.0001798,2]
[377738225,1754526891084,500.0,0.00017905,2]
[377738227,1754526926200,-228.32597304,0.00018105,2]
[377738228,1754526926224,-300.0,0.00018157,2]
[377738229,1754526926253,-504.78616628,0.00018209,2]
[377738230,1754526926280,-579.17570658,0.00018314,2]
[377738231,1754526926303,-300.0,0.00018314,2]
[377738232,1754526926328,-653.56524687,0.00018419,2]
[377738233,1754526926353,-727.95478717,0.00018524,2]
[377738234,1754526926377,-802.34432746,0.00018628,2]
[377738235,1754526926400,-181.43,0.00018699,2]
[377738236,1754526926423,-876.73386776,0.00018733,2]
[377738237,1754526926446,-512.0,0.00018747,2]
[377738238,1754526926469,-150.0,0.00018784,2]
[377738239,1754526926494,-150.0,0.00018792,2]
[377738240,1754526926520,-150.0,0.00018813,2]
[377738241,1754526926543,-951.12340805,0.00018838,2]
[377738242,1754526926567,-1200.0,0.00018899,2]
[377738243,1754526926591,-182.0,0.00018899,2]
[377738244,1754526926613,-537.81374655,0.000189,2]
[377738245,1754526926635,-153.51564424,0.000189,2]
[377738246,1754526926660,-451.52111007,0.000189,2]
[377738247,1754526926683,-157.8152337,0.000189,2]
[377738248,1754526926706,-150.0,0.00018919,2]
[377738249,1754526926729,-1025.51294835,0.00018943,2]
[377738250,1754526926752,-151.98101498,0.00018987,2]
[377738251,1754526926774,-300.0,0.00018996,2]
[377738252,1754526926797,-824.0,0.00018997,2]
[377738253,1754526926820,-1551.709,0.00018997,2]
[377738254,1754526926842,-209.23,0.00018997,2]
[377738255,1754526926865,-151.0,0.00018998,2]
[377738256,1754526926888,-153.723848,0.00018998,2]
[377738257,1754526926910,-1608.9557615,0.00018998,2]
[377738258,1754526926933,-24721.8971666,0.00018998,2]
[377738259,1754526926956,-1022.0371095,0.00018998,2]
[377738260,1754526926979,-48470.4674999,0.00018998,2]
[377738261,1754526927001,-48470.4674999,0.00018998,2]
[377738262,1754526927024,-33176.5217158,0.00018998,2]
[377738263,1754526927048,-2976.597089,0.00018998,2]
[377738264,1754526927072,-174.249055,0.00018998,2]
[377738265,1754526927095,-455.52117669,0.00018999,2]
[377738266,1754526927118,-175.78503038,0.00018999,2]
[377738267,1754526927141,-534.0,0.00019,2]
[377738268,1754526927164,-151.0,0.00019,2]
[377738269,1754526927186,-152.37491,0.00019,2]
[377738270,1754526927210,-151.0,0.00019,2]
[377738271,1754526927233,-151.0,0.00019,2]
[377738272,1754526927258,-218.469049,0.00019,2]
[377738273,1754526927283,-218.469049,0.00019,2]
[377738274,1754526927310,-151.0,0.00019,2]
[377738275,1754526927334,-151.0,0.00019,2]
[377738276,1754526927357,-151.0,0.00019,2]
[377738277,1754526927391,-151.0,0.00019,2]
[377738278,1754526927417,-151.0,0.00019,2]
[377738279,1754526927441,-151.0,0.00019,2]
[377738280,1754526927463,-151.0,0.00019,2]
[377738281,1754526927487,-151.0,0.00019,2]
[377738282,1754526927512,-151.0,0.00019,2]
[377738283,1754526927535,-350.0,0.00019,2]
[377738284,1754526927819,-151.0,0.00019,2]
[377738285,1754526927842,-151.0,0.00019,2]
[377738286,1754526927866,-436414.33523983,0.00019,2]
[377738287,1754526927892,-402.599959,0.00019,2]
[377738288,1754526927917,-402.599959,0.00019,2]
[377738289,1754526927940,-123673.3907008,0.00019,2]
[377738290,1754526931828,598.91,0.0001899,3]
[377738292,1754526932713,169.09175056,0.0003,120]
[377738293,1754526959271,599.9,0.00030136,120]
[377738294,1754526962399,1000.0,0.00018588,4]
[377738296,1754527001427,423.0,0.00017,2]
[377738298,1754527022014,150.0,0.00018,2]
[377738303,1754527077687,200.0,0.00017975,2]
[377738307,1754527146644,258.84,0.00013699,2]
[377738314,1754527261027,1000.0,0.00017854,2]
[377738315,1754527286486,518.09,0.00015068,2]
[377738316,1754527286682,518.09,0.00016658,2]
[377738317,1754527287955,486.015453,0.00017969,2]
[377738319,1754527294433,23900.0,0.00017856,2]
[377738322,1754527467149,587.63,0.00017984,2]
[377738327,1754527510501,175.0,0.00017979,7]
[377738330,1754527538545,415.0,0.00016,2]
[377738331,1754527538928,407.0,0.0001718,2]
[377738333,1754527556436,200.0,0.00017975,2]
[377738336,1754527605986,512.0,0.00017747,2]
[377738345,1754527694386,176.7,0.00017944,2]
[377738537,1754527832635,-300.0,0.0001809,2]
[377738538,1754527832646,-90.31098522,0.00018105,2]
[377738593,1754527833257,-209.68901478,0.00018105,2]
[377738594,1754527833268,-518.09,0.00018247,2]
[377738595,1754527833277,-398.0,0.0001837,2]
[377738596,1754527833288,-293.85055967,0.00018396,2]
[377738597,1754527833298,-166.66,0.00018498,2]
[377738598,1754527833308,-663.88606687,0.000187,2]
[377738599,1754527833318,-150.0,0.00018733,2]
[377738600,1754527833327,-1166.66666,0.0001881,2]
[377738601,1754527833337,-273.6300549,0.00018825,2]
[377738602,1754527833353,-26.3699451,0.00018825,2]
[377738603,1754527833363,-176.7,0.00018841,2]
[377738604,1754527833373,-754.04241208,0.00018856,2]
[377738605,1754527833384,-150.0,0.0001886,2]
[377738606,1754527833393,-24.57826153,0.00018893,2]
[377738607,1754527833409,-1175.42173847,0.00018893,2]
[377738608,1754527833420,-1529.1077,0.00018894,2]
[377738609,1754527833429,-274.9556,0.00018894,2]
[377738610,1754527833439,-7126.50274975,0.00018894,2]
[377738611,1754527833449,-6578.0522,0.00018898,2]
[377738612,1754527833460,-1000.0,0.00018898,2]
[377738613,1754527833469,-634.0,0.00018899,2]
[377738614,1754527833478,-263.78641323,0.000189,2]
[377738615,1754527833488,-1000.0,0.000189,2]
[377738616,1754527833497,-5477.4070992,0.000189,2]
[377738617,1754527833507,-2500.0,0.000189,2]
[377738618,1754527833517,-537.81374655,0.000189,2]
[377738619,1754527833526,-910.8039,0.00018905,2]
[377738620,1754527833535,-1166.66667,0.0001892,2]
[377738621,1754527833545,-151.0,0.0001898,2]
[377738622,1754527833554,-151.0,0.0001898,2]
[377738623,1754527833564,-151.0,0.0001898,2]
[377738624,1754527833573,-151.0,0.0001898,2]
[377738625,1754527833583,-151.0,0.0001898,2]
[377738626,1754527833593,-151.0,0.0001898,2]
[377738627,1754527833602,-151.0,0.0001898,2]
[377738628,1754527833613,-151.0,0.0001898,2]
[377738629,1754527833622,-151.0,0.0001898,2]
[377738630,1754527833631,-151.0,0.0001898,2]
[377738631,1754527833641,-151.0,0.0001898,2]
[377738632,1754527833651,-151.0,0.0001898,2]
[377738633,1754527833660,-151.0,0.0001898,2]
[377738634,1754527833670,-151.0,0.0001898,2]
[377738635,1754527833680,-151.0,0.0001898,2]
[377738636,1754527833690,-151.0,0.0001898,2]
[377738637,1754527833699,-151.0,0.0001898,2]
[377738638,1754527833708,-151.0,0.0001898,2]
[377738639,1754527833718,-151.0,0.0001898,2]
[377738640,1754527833728,-151.0,0.0001898,2]
[377738641,1754527833738,-350.0,0.00018981,2]
[377738642,1754527833747,-169.09175057,0.00018989,2]
[377738643,1754527833757,-7344.21,0.0001899,2]
[377738644,1754527833767,-7344.21,0.0001899,2]
[377738645,1754527833776,-500.0,0.0001899,2]
[377738646,1754527833789,-500.0,0.0001899,2]
[377738647,1754527833799,-500.0,0.0001899,2]
[377738648,1754527833810,-500.0,0.0001899,2]
[377738649,1754527833819,-500.0,0.0001899,2]
[377738650,1754527833828,-500.0,0.0001899,2]
[377738651,1754527833838,-500.0,0.0001899,2]
[377738652,1754527833848,-500.0,0.0001899,2]
[377738653,1754527833859,-500.0,0.0001899,2]
[377738654,1754527833868,-500.0,0.0001899,2]
[377738655,1754527833880,-500.0,0.0001899,2]
[377738656,1754527833891,-500.0,0.0001899,2]
[377738657,1754527833901,-500.0,0.0001899,2]
[377738658,1754527833911,-500.0,0.0001899,2]
[377738659,1754527833922,-500.0,0.0001899,2]
[377738660,1754527833931,-500.0,0.0001899,2]
[377738661,1754527833942,-500.0,0.0001899,2]
[377738662,1754527833951,-557.87974614,0.0001899,2]
[377738663,1754527833961,-500.0,0.0001899,2]
[377738664,1754527833970,-500.0,0.0001899,2]
[377738665,1754527833980,-500.0,0.0001899,2]
[377738666,1754527833989,-500.0,0.0001899,2]
[377738667,1754527833999,-500.0,0.0001899,2]
[377738668,1754527834008,-500.0,0.0001899,2]
[377738669,1754527834021,-21449.33401118,0.00018991,2]
[377738670,1754527834031,-28344.40724018,0.00018994,2]
[377738671,1754527834055,-1434.10342446,0.00018994,2]
[377738672,1754527834074,-898.0309112,0.00018994,2]
[377738673,1754527834101,-8221.52592416,0.00018994,2]
[377738674,1754527834112,-2078.8436967,0.00018994,2]
[377738675,1754527834122,-1528.7688584,0.00018994,2]
[377738676,1754527834132,-500.0,0.00018994,2]
[377738677,1754527834141,-150.0,0.00018994,2]
[377738678,1754527834151,-150.0,0.00018994,2]
[377738679,1754527834160,-150.0,0.00018994,2]
[377738680,1754527834170,-150.0,0.00018994,2]
[377738681,1754527834179,-150.0,0.00018994,2]
[377738682,1754527834189,-150.0,0.00018994,2]
[377738683,1754527834198,-150.0,0.00018994,2]
[377738684,1754527834208,-150.0,0.00018994,2]
[377738685,1754527834218,-150.0,0.00018994,2]
[377738686,1754527834227,-150.0,0.00018994,2]
[377738687,1754527834237,-150.0,0.00018994,2]
[377738688,1754527834247,-150.0,0.00018994,2]
[377738689,1754527834257,-150.0,0.00018994,2]
[377738690,1754527834267,-150.0,0.00018994,2]
[377738691,1754527834276,-150.0,0.00018994,2]
[377738692,1754527834285,-150.0,0.00018994,2]
[377738693,1754527834295,-150.0,0.00018997,2]
[377738694,1754527834304,-500.0,0.00018997,2]
[377738695,1754527834315,-150.0,0.00018997,2]
[377738696,1754527834324,-150.0,0.00018997,2]
[377738697,1754527834333,-150.0,0.00018997,2]
[377738698,1754527834344,-150.0,0.00018997,2]
[377738699,1754527834353,-150.0,0.00018997,2]
[377738700,1754527834363,-205.61509283,0.00018997,2]
[377738701,1754527834372,-500.0,0.00018997,2]
[377738702,1754527834382,-150.0,0.00018997,2]
[377738703,1754527834392,-150.0,0.00018997,2]
[377738704,1754527834401,-150.0,0.00018997,2]
[377738705,1754527834410,-150.0,0.00018997,2]
[377738706,1754527834420,-150.0,0.00018997,2]
[377738707,1754527834429,-150.0,0.00018997,2]
[377738708,1754527834439,-153.780884,0.00018998,2]
[377738709,1754527834448,-151.0,0.00018998,2]
[377738710,1754527834457,-151.0,0.00018998,2]
[377738711,1754527834467,-151.0,0.00018998,2]
[377738712,1754527834476,-151.0,0.00018998,2]
[377738713,1754527834486,-151.0,0.00018998,2]
[377738714,1754527834495,-151.0,0.00018998,2]
[377738715,1754527834505,-1718.2588773,0.00018998,2]
[377738716,1754527834515,-26868.8253003,0.00018998,2]
[377738717,1754527834525,-21437.20192077,0.00018998,2]
[377738718,1754527834537,-4432.03377963,0.00018998,2]
[377738719,1754527834546,-150.0,0.00018999,2]
[377738720,1754527834558,-47.58893919,0.00018999,2]
[377738721,1754527834570,-158.95743119,0.00018999,2]
[377738722,1754527834582,-441.91434496,0.00018999,2]
[377738723,1754527834592,-193.2262705,0.00018999,2]
[377738724,1754527834601,-28036.83006435,0.00019,2]
[377738732,1754527838192,-167.27,0.00018712,2]
[377738733,1754527838202,-4447.45538235,0.00019,2]
[377738734,1754527838244,-15805.00030785,0.00019,2]
[377738735,1754527838256,-4510.3118169,0.00019,2]
[377738736,1754527838403,-1928.41141482,0.00019,2]
[377738975,1754527841030,-2242.76005068,0.00019,2]
[377740597,1754527908403,159.0,0.000195,3]
[377740598,1754527915535,159.0,0.000195,3]
[377740599,1754527927564,159.0,0.000301,120]
[377740601,1754527935487,159.0,0.000301,120]
[377740602,1754527959129,150.0,0.00018,2]
[377740603,1754527982889,250.0,0.00015,2]
[377740614,1754528057684,1338.89617069,0.0003,120]
[377740615,1754528061547,666.0,0.0001807,3]
[377740618,1754528079795,397.0,0.000169,2]
[377740620,1754528082928,158.35,0.00027053,120]
[377740623,1754528095246,253.79,0.00013699,2]
[377740625,1754528102641,892.59744713,0.0003,120]
[377740629,1754528133392,445.79,0.00017933,2]
[377740631,1754528147567,595.06496475,0.0003,120]
[377740635,1754528167434,1036.48856281,0.00018999,5]
[377740638,1754528221772,461.7,0.00015068,2]
[377740639,1754528222013,461.7,0.00016661,2]
[377740641,1754528237570,396.7099765,0.0003,120]
[377740642,1754528244919,619.34274588,0.00017939,2]
[377740644,1754528260404,560.96134749,0.00017939,2]
[377740646,1754528277989,1000.0,0.0001793,2]
[377740647,1754528282472,264.47331767,0.0003,120]
[377740648,1754528326023,512.0,0.00017668,2]
[377740649,1754528327472,1271.76019993,0.0003,120]
[377740652,1754528372495,847.84013328,0.0003,120]
[377740655,1754528417468,565.22675552,0.0003,120]
[377740657,1754528434562,1060.74932548,0.00018999,5]
[377740658,1754528434612,1060.74932549,0.0001902,5]
[377740663,1754528507531,376.81783702,0.0003,120]
[377740664,1754528552500,251.21189134,0.0003,120]
[377740668,1754528598784,167.47459423,0.0003,120]
[377740669,1754528616469,389.0,0.000159,2]
[377740670,1754528617187,381.0,0.0001708,2]
[377740672,1754528668984,175.0,0.0001789,7]
[377740673,1754528713528,150.0,0.00019191,4]
[377740674,1754528713568,150.0,0.00019306,4]
[377740675,1754528713618,150.0,0.00019421,4]
[377740676,1754528714500,293.81,0.0001789,2]
[377740677,1754528715010,150.0,0.00019237,4]
[377740678,1754528715092,150.0,0.00019306,4]
[377740679,1754528715147,150.0,0.00019375,4]
[377740680,1754528715267,150.0,0.00019444,4]
[377740682,1754528717463,150.0,0.00019189,4]
[377740683,1754528717545,150.0,0.00019233,4]
[377740684,1754528717605,150.0,0.00019277,4]
[377740685,1754528717681,150.0,0.00019321,4]